fUSD/lending_fUSD_20260221
["ID","MTS","AMOUNT","RATE_DAILY","PERIOD"]
[406247129,1771658251931,500.0,0.00014,2]
[406247130,1771658251987,1100.0,0.00011083,2]
[406247131,1771658252468,200.01,0.00011083,2]
[406247132,1771658252492,299.99,0.00011083,2]
[406247133,1771658252520,500.0,0.00014,2]
[406247134,1771658252547,500.0,0.00014,2]
[406247135,1771658252574,1100.0,0.00011083,2]
[406247136,1771658252648,500.0,0.00014,2]
[406247137,1771658252963,500.0,0.00011083,2]
[406247138,1771658252990,500.0,0.00014,2]
[406247139,1771658253019,500.0,0.00014,2]
[406247140,1771658253046,760.39399352,0.00011083,2]
[406247141,1771658253078,339.60600648,0.00011083,2]
[406247142,1771658253147,500.0,0.00014,2]
[406247143,1771658253454,500.0,0.00011083,2]
[406247144,1771658253486,500.0,0.00014,2]
[406247145,1771658253513,500.0,0.00014,2]
[406247146,1771658253539,1100.0,0.00011083,2]
[406247147,1771658253647,500.0,0.00014,2]
[406247148,1771658253959,500.0,0.00014,2]
[406247149,1771658253985,500.0,0.00014,2]
[406247150,1771658254010,500.0,0.00011083,2]
[406247151,1771658254036,1100.0,0.00011083,2]
[406247152,1771658254154,500.0,0.00014,2]
[406247153,1771658254468,500.0,0.00011083,2]
[406247154,1771658254494,500.0,0.00014,2]
[406247155,1771658254519,500.0,0.00011083,2]
[406247156,1771658254657,400.01,0.00014,2]
[406247157,1771658254680,99.99,0.00014,2]
[406247158,1771658254976,500.0,0.00011083,2]
[406247159,1771658255004,500.0,0.00014,2]
[406247160,1771658255052,1100.0,0.00011083,2]
[406247161,1771658255153,500.0,0.00014,2]
[406247162,1771658255179,500.0,0.00011083,2]
[406247163,1771658255460,500.0,0.00014,2]
[406247164,1771658255489,500.0,0.00011083,2]
[406247165,1771658255549,1100.0,0.00011083,2]
[406247166,1771658255629,500.0,0.00011083,2]
[406247167,1771658255785,918.40902476,0.00011083,2]
[406247168,1771658255941,500.0,0.00011083,2]
[406247169,1771658255968,507.58210167,0.00011083,2]
[406247170,1771658256061,1100.0,0.00011083,2]
[406247171,1771658256218,500.0,0.00011083,2]
[406247172,1771658256410,500.0,0.00011083,2]
[406247173,1771658256565,174.02887357,0.00011083,2]
[406247174,1771658256590,925.97112643,0.00011083,2]
[406247175,1771658256712,500.0,0.00011083,2]
[406247176,1771658256891,500.0,0.00011083,2]
[406247177,1771658257065,1100.0,0.00011083,2]
[406247178,1771658257331,500.0,0.00011083,2]
[406247179,1771658257389,500.0,0.00011083,2]
[406247180,1771658257557,1121.87998365,0.00011083,2]
[406247181,1771658257707,500.0,0.00011083,2]
[406247182,1771658257933,500.0,0.00011083,2]
[406247183,1771658258218,278.13001635,0.00011083,2]
[406247184,1771658258241,309.0336807,0.00011083,2]
[406247185,1771658258452,951.95169886,0.00011083,2]
[406247186,1771658526552,1500.0,0.00015986,2]
[406247187,1771658546046,10000.01,0.00016018,2]
[406247188,1771658546069,10000.01,0.00016018,2]
[406247189,1771658546091,3298.2884318,0.00016018,2]
[406247190,1771658564407,550.0,0.00016,2]
[406247191,1771658613906,429.44932262,0.00016,2]
[406247192,1771658635159,170.32704325,0.00016,2]
[406247194,1771658686951,500.0,0.00016005,2]
[406247195,1771658719551,873.676763,0.00013,2]
[406247196,1771658734090,286.29954842,0.00016,2]
[406247197,1771658785448,877.96541209,0.00016,2]
[406247198,1771658805583,347.87420264,0.00016,2]
[406247199,1771658840988,1000.0,0.00015595,2]
[406247200,1771658869904,2500.0,0.00016,2]
[406247201,1771658887670,308.5201231,0.000125,2]
[406247202,1771658924019,550.04706,0.00016,2]
[406247203,1771658942704,151.0,0.00016018,2]
[406247204,1771658942852,142.56861426,0.00016018,2]
[406247205,1771658942875,238.60011928,0.00016018,2]
[406247206,1771658979132,157.63,0.00015524,2]
[406247207,1771659003862,-300.0,0.00016088,2]
[406247208,1771659003893,-300.0,0.00016088,2]
[406247209,1771659003922,-1200.0,0.00016088,2]
[406247210,1771659003950,-300.0,0.00016088,2]
[406247211,1771659003970,-300.0,0.00016089,2]
[406247212,1771659003982,-300.0,0.00016089,2]
[406247213,1771659003996,-1200.0,0.00016089,2]
[406247214,1771659004008,-300.0,0.00016089,2]
[406247215,1771659004019,-15800.0,0.00016089,2]
[406247216,1771659005720,2500.0,0.00016,2]
[406247217,1771659017221,152.82,0.00015488,2]
[406247218,1771659024062,2189.56,0.000156,5]
[406247219,1771659024086,2710.44,0.000156,5]
[406247220,1771659026153,5000.01,0.000157,5]
[406247221,1771659026176,4899.99,0.000157,5]
[406247222,1771659028447,1273.01446863,0.000158,5]
[406247223,1771659028470,10000.01,0.000158,5]
[406247262,1771659033285,-3626.97553137,0.000158,5]
[406247266,1771659037744,-19900.0,0.000159,5]
[406247267,1771659037754,-2993.13942045,0.00016089,2]
[406247268,1771659037763,-190.86636562,0.00016089,2]
[406247269,1771659037773,-164.46005654,0.00016089,2]
[406247270,1771659037783,-496.25310031,0.00016089,2]
[406247271,1771659037792,-170.32704325,0.00016089,2]
[406247272,1771659037801,-258.68099281,0.0001609,2]
[406247273,1771659037815,-200.0,0.0001609,2]
[406247274,1771659037824,-151.0,0.00016097,2]
[406247275,1771659037834,-184.06,0.00016097,2]
[406247276,1771659037843,-195.0,0.00016098,2]
[406247277,1771659037853,-1000.0,0.00016098,2]
[406247278,1771659037863,-550.0,0.00016098,2]
[406247279,1771659037872,-195.0,0.00016099,2]
[406247280,1771659037883,-195.0,0.00016099,2]
[406247281,1771659037893,-195.0,0.00016099,2]
[406247282,1771659037902,-5468.35879078,0.00016099,2]
[406247283,1771659037912,-500.0,0.00016099,2]
[406247284,1771659037921,-295.84,0.00016099,2]
[406247285,1771659037934,-294.29646702,0.00016099,2]
[406247286,1771659037943,-500.0,0.00016099,2]
[406247287,1771659037952,-310.82530016,0.00016099,2]
[406247288,1771659037962,-543.13378539,0.00016099,2]
[406247289,1771659037971,-500.0,0.00016099,2]
[406247290,1771659037981,-500.0,0.00016099,2]
[406247291,1771659037990,-500.0,0.00016099,2]
[406247292,1771659038000,-500.0,0.00016099,2]
[406247293,1771659038009,-500.0,0.00016099,2]
[406247294,1771659038019,-500.0,0.00016099,2]
[406247295,1771659038029,-500.0,0.00016099,2]
[406247296,1771659038039,-500.0,0.00016099,2]
[406247297,1771659038049,-500.0,0.00016099,2]
[406247298,1771659038058,-500.0,0.00016099,2]
[406247299,1771659038068,-500.0,0.00016099,2]
[406247300,1771659038078,-500.0,0.00016099,2]
[406247302,1771659038088,-500.0,0.00016099,2]
[406247304,1771659038098,-500.0,0.00016099,2]
[406247306,1771659038107,-500.0,0.00016099,2]
[406247308,1771659038116,-500.0,0.00016099,2]
[406247310,1771659038129,-500.0,0.00016099,2]
[406247312,1771659038139,-500.0,0.00016099,2]
[406247314,1771659038148,-500.0,0.00016099,2]
[406247316,1771659038158,-501.93614042,0.00016099,2]
[406247318,1771659038168,-500.0,0.00016099,2]
[406247320,1771659038178,-500.0,0.00016099,2]
[406247322,1771659038187,-500.0,0.00016099,2]
[406247324,1771659038196,-500.0,0.00016099,2]
[406247326,1771659038206,-500.0,0.00016099,2]
[406247328,1771659038215,-500.0,0.00016099,2]
[406247331,1771659038225,-500.0,0.00016099,2]
[406247333,1771659038234,-500.0,0.00016099,2]
[406247335,1771659038244,-500.0,0.00016099,2]
[406247337,1771659038253,-517.42526386,0.00016099,2]
[406247339,1771659038262,-500.0,0.00016099,2]
[406247341,1771659038272,-500.0,0.00016099,2]
[406247343,1771659038281,-500.0,0.00016099,2]
[406247345,1771659038291,-500.0,0.00016099,2]
[406247347,1771659038300,-500.0,0.00016099,2]
[406247349,1771659038309,-500.0,0.00016099,2]
[406247351,1771659038321,-500.0,0.00016099,2]
[406247353,1771659038330,-500.0,0.00016099,2]
[406247355,1771659038339,-500.0,0.00016099,2]
[406247357,1771659038349,-500.0,0.00016099,2]
[406247359,1771659038358,-500.0,0.00016099,2]
[406247361,1771659038367,-500.0,0.00016099,2]
[406247363,1771659038377,-500.0,0.00016099,2]
[406247365,1771659038386,-500.0,0.00016099,2]
[406247367,1771659038395,-500.0,0.00016099,2]
[406247369,1771659038405,-159.29011274,0.000161,2]
[406247371,1771659038415,-2696.5167,0.000161,2]
[406247372,1771659038424,-3500000.0,0.000161,2]
[406247373,1771659038434,-150.99,0.00016189,2]
[406247374,1771659038443,-441.81846584,0.00016189,2]
[406247375,1771659038456,-258.68099281,0.0001619,2]
[406247376,1771659038464,-9999.99,0.00016198,2]
[406247377,1771659038474,-5112.01,0.00016198,2]
[406247378,1771659038483,-2548.13,0.00016198,2]
[406247379,1771659038493,-1000.0,0.000162,2]
[406247380,1771659038501,-63625.62065418,0.000162,5]
[406247381,1771659038510,-1982.8,0.00016288,2]
[406247382,1771659038522,-500.0,0.00016299,2]
[406247383,1771659038531,-500.0,0.00016299,2]
[406247384,1771659038541,-500.0,0.00016299,2]
[406247385,1771659038550,-500.0,0.00016299,2]
[406247386,1771659038559,-500.0,0.00016299,2]
[406247387,1771659038568,-500.0,0.00016299,2]
[406247388,1771659038577,-500.0,0.00016299,2]
[406247389,1771659038587,-500.0,0.00016299,2]
[406247390,1771659038596,-500.0,0.00016299,2]
[406247391,1771659038606,-500.0,0.00016299,2]
[406247392,1771659038616,-500.0,0.00016299,2]
[406247393,1771659038626,-500.0,0.00016299,2]
[406247394,1771659038639,-500.0,0.00016299,2]
[406247395,1771659038649,-500.0,0.00016299,2]
[406247396,1771659038659,-616.19377918,0.00016299,2]
[406247397,1771659038668,-500.0,0.00016299,2]
[406247398,1771659038677,-500.0,0.00016299,2]
[406247399,1771659038687,-500.0,0.00016299,2]
[406247400,1771659038696,-500.0,0.00016299,2]
[406247401,1771659038705,-500.0,0.00016299,2]
[406247402,1771659038717,-500.0,0.00016299,2]
[406247403,1771659038727,-500.0,0.00016299,2]
[406247404,1771659038736,-500.0,0.00016299,2]
[406247405,1771659038746,-32860.742,0.000163,2]
[406247406,1771659038756,-200.0,0.000163,3]
[406247407,1771659038766,-162.93997784,0.00016373,2]
[406247408,1771659038775,-168.71198045,0.00016373,2]
[406247409,1771659038784,-503.5027165,0.00016373,2]
[406247410,1771659038793,-166.88843163,0.00016373,2]
[406247411,1771659038802,-500.41653761,0.00016373,2]
[406247412,1771659038815,-246.364609,0.00016373,2]
[406247413,1771659038825,-501.05660533,0.00016373,2]
[406247414,1771659038834,-501.38512914,0.00016373,2]
[406247415,1771659038844,-454.60115488,0.00016373,2]
[406247416,1771659038855,-501.37835228,0.00016373,2]
[406247417,1771659038864,-184.37223932,0.00016373,2]
[406247418,1771659038874,-165.27434071,0.00016373,2]
[406247419,1771659038885,-500.95052506,0.00016373,2]
[406247420,1771659038894,-503.18537404,0.00016373,2]
[406247421,1771659038904,-500.0,0.00016373,2]
[406247422,1771659038913,-500.8784215,0.00016373,2]
[406247423,1771659038922,-500.38903412,0.00016373,2]
[406247424,1771659038931,-501.02670572,0.00016373,2]
[406247425,1771659038941,-500.0,0.00016373,2]
[406247426,1771659038950,-230.31122448,0.00016373,2]
[406247427,1771659038959,-453.19896023,0.00016373,2]
[406247428,1771659038969,-502.63635996,0.00016373,2]
[406247429,1771659038978,-493.47361044,0.00016373,2]
[406247430,1771659038988,-500.0,0.00016373,2]
[406247431,1771659038997,-590.39410538,0.00016373,2]
[406247432,1771659039006,-167.41603795,0.00016373,2]
[406247433,1771659039016,-500.0,0.00016373,2]
[406247434,1771659039025,-500.49256887,0.00016373,2]
[406247435,1771659039035,-164.4744294,0.00016373,2]
[406247436,1771659039044,-500.0,0.00016373,2]
[406247437,1771659039053,-503.58870457,0.00016373,2]
[406247438,1771659039063,-501.82753949,0.00016373,2]
[406247439,1771659039073,-500.18211712,0.00016373,2]
[406247440,1771659039082,-500.0,0.00016373,2]
[406247441,1771659039092,-500.0,0.00016373,2]
[406247442,1771659039110,-295.84,0.00016373,2]
[406247443,1771659039121,-20893.1394204,0.0001638,2]
[406247444,1771659039130,-515.94559104,0.00016399,2]
[406247445,1771659039140,-157.63,0.00016494,2]
[406247446,1771659039150,-500.0,0.00016499,2]
[406247447,1771659039159,-500.0,0.00016499,2]
[406247448,1771659039169,-500.0,0.00016499,2]
[406247449,1771659039178,-500.0,0.00016499,2]
[406247450,1771659039188,-500.0,0.00016499,2]
[406247451,1771659039197,-500.0,0.00016499,2]
[406247452,1771659039207,-500.0,0.00016499,2]
[406247453,1771659039216,-500.0,0.00016499,2]
[406247454,1771659039225,-500.0,0.00016499,2]
[406247455,1771659039234,-500.0,0.00016499,2]
[406247456,1771659039243,-500.0,0.00016499,2]
[406247457,1771659039253,-500.0,0.00016499,2]
[406247458,1771659039262,-500.0,0.00016499,2]
[406247459,1771659039272,-500.0,0.00016499,2]
[406247460,1771659039281,-200.0,0.00016638,2]
[406247461,1771659039290,-295.84,0.00016647,2]
[406247462,1771659039299,-20893.1394204,0.0001667,2]
[406247463,1771659039308,-1125.0,0.00016721,2]
[406247464,1771659039318,-413.6,0.00016756,2]
[406247465,1771659039327,-150.0,0.00016854,2]
[406247466,1771659039336,-24900.0,0.000169,6]
[406247467,1771659039346,-501.32982636,0.00016921,2]
[406247468,1771659039355,-1001.34299668,0.00016921,2]
[406247469,1771659039364,-500.5604227,0.00016921,2]
[406247470,1771659039373,-1001.90174129,0.00016921,2]
[406247471,1771659039382,-1004.36409669,0.00016921,2]
[406247472,1771659039391,-501.3064784,0.00016921,2]
[406247473,1771659039400,-295.84,0.00016921,2]
[406247474,1771659039410,-20893.1394204,0.00016961,2]
[406247475,1771659039419,-300.0,0.00016999,2]
[406247476,1771659039429,-352.10495522,0.00016999,2]
[406247477,1771659039439,-666.0,0.00016999,2]
[406247478,1771659039448,-242271.34517778,0.00017,2]
[406247479,1771659039457,-19635.2036095,0.0001702,2]
[406247480,1771659039467,-500.0,0.00017066,2]
[406247481,1771659039479,-295.86811006,0.00017195,2]
[406247482,1771659039489,-450.0,0.00017224,2]
[406247483,1771659039499,-20893.1394204,0.00017251,2]
[406247484,1771659039508,-347.87420264,0.00017402,2]
[406247485,1771659039517,-157.63,0.00017464,2]
[406247486,1771659039527,-20893.1394204,0.00017542,2]
[406247487,1771659039536,-1000.0,0.00017544,2]
[406247488,1771659039546,-1680.0,0.00017676,2]
[406247489,1771659039555,-5000.0,0.00017698,2]
[406247490,1771659039565,-537.45672,0.00017698,2]
[406247491,1771659039575,-195.0,0.00017707,2]
[406247492,1771659039584,-500.0,0.00017707,2]
[406247493,1771659039594,-250.0,0.00017707,2]
[406247494,1771659039604,-111752.4,0.00017743,2]
[406247495,1771659039614,-4900.0,0.000178,6]
[406247496,1771659039623,-822.17856688,0.00017808,2]
[406247497,1771659039632,-822.17856688,0.00017808,2]
[406247498,1771659039642,-822.17856688,0.00017808,2]
[406247499,1771659039651,-822.17856688,0.00017808,2]
[406247500,1771659039661,-822.17856688,0.00017808,2]
[406247501,1771659039671,-822.17856688,0.00017808,2]
[406247502,1771659039680,-822.17856688,0.00017808,2]
[406247503,1771659039690,-822.17856688,0.00017808,2]
[406247504,1771659039699,-822.17856688,0.00017808,2]
[406247505,1771659039709,-822.17856688,0.00017808,2]
[406247506,1771659039718,-822.17856688,0.00017808,2]
[406247507,1771659039728,-822.17856688,0.00017808,2]
[406247508,1771659039739,-822.17856688,0.00017808,2]
[406247509,1771659039749,-822.17856688,0.00017808,2]
[406247510,1771659039759,-822.17856688,0.00017808,2]
[406247511,1771659039768,-822.17856688,0.00017808,2]
[406247512,1771659039778,-822.17856688,0.00017808,2]
[406247513,1771659039789,-822.17856688,0.00017808,2]
[406247514,1771659039800,-822.17856688,0.00017808,2]
[406247515,1771659039814,-822.17856688,0.00017808,2]
[406247516,1771659039823,-822.17856688,0.00017808,2]
[406247517,1771659039833,-822.17856688,0.00017808,2]
[406247518,1771659039842,-986.61428024,0.00017808,2]
[406247519,1771659039853,-986.61428024,0.00017808,2]
[406247520,1771659039862,-986.61428024,0.00017808,2]
[406247521,1771659039876,-986.61428024,0.00017808,2]
[406247522,1771659039887,-250.0,0.00017808,20]
[406247523,1771659039896,-250.0,0.00017808,20]
[406247524,1771659039905,-216.045536,0.00017808,20]
[406247525,1771659039915,-800.0,0.00017808,2]
[406247526,1771659039924,-20893.1394204,0.00017832,2]
[406247527,1771659039933,-1004.67257269,0.0001786,2]
[406247528,1771659039943,-4900.0,0.000179,6]
[406247529,1771659039952,-4885.69141209,0.00017973,2]
[406247530,1771659039962,-995.47064029,0.00017973,2]
[406247531,1771659039971,-622.87266686,0.00017973,2]
[406247532,1771659039981,-2754.33559866,0.00017973,2]
[406247533,1771659039990,-258.68099281,0.0001799,2]
[406247534,1771659039999,-151.0,0.00017997,2]
[406247535,1771659040009,-666.0,0.00017999,2]
[406247536,1771659040018,-1268084.16170225,0.00018,2]
[406247537,1771659040476,-500.0,0.00016373,2]
[406247538,1771659040485,-502.9045905,0.00016921,2]
[406247539,1771659040494,-7520.35409129,0.00018,2]
[406247540,1771659040505,-9567.63200002,0.00018,2]
[406247541,1771659040516,-5718.26109132,0.00018,2]
[406247542,1771659040528,-806.87250845,0.00018,2]
[406247543,1771659040539,-2831.20279815,0.00018,2]
[406247544,1771659040552,-2707.47028246,0.00018,2]
[406247545,1771659040564,-1802308.7328624,0.00018,2]
[406247546,1771659040619,-336.36,0.00018,2]
[406247547,1771659045236,-434.22146277,0.00017808,2]
[406247548,1771659045247,-207.98112418,0.00018,2]
[406247549,1771659045460,-1700.99707378,0.00018,2]
[406247552,1771659045691,-69372.15054666,0.00018,2]
[406247553,1771659045859,-366.41920612,0.00018,2]
[406247565,1771659046800,-335.423,0.00018,2]
[406247566,1771659154083,1400.0,0.000156,5]
[406247567,1771659156192,2900.0,0.000157,5]
[406247568,1771659158278,2100.01,0.000158,5]
[406247569,1771659158301,2299.99,0.000158,5]
[406247570,1771659160370,5900.0,0.000159,5]
[406247571,1771659184517,5000.01,0.000159,2]
[406247572,1771659184543,400.02,0.000159,2]
[406247573,1771659184566,10000.01,0.000159,2]
[406247574,1771659184591,6690.00080791,0.000159,2]
[406247575,1771659194223,231.9161351,0.000159,2]
[406247576,1771659224593,346.53751486,0.000159,2]
[406247577,1771659344752,231.02500992,0.000159,2]
[406247578,1771659351101,926.32302281,0.000159,2]
[406247579,1771659447365,10000.01,0.000159,2]
[406247580,1771659447394,10000.01,0.000159,2]
[406247581,1771659447420,10000.01,0.000159,2]
[406247582,1771659447444,10000.01,0.000159,2]
[406247583,1771659447469,10000.01,0.000159,2]
[406247584,1771659447495,10000.01,0.000159,2]
[406247585,1771659447521,10000.01,0.000159,2]
[406247586,1771659447546,10000.01,0.000159,2]
[406247587,1771659447571,10000.01,0.000159,2]
[406247588,1771659447596,10000.01,0.000159,2]
[406247589,1771659447620,4073.68697719,0.000159,2]
[406247590,1771659447648,7780.82983549,0.000159,2]
[406247591,1771659457552,-3043.20540163,0.000159,2]
[406247592,1771659457651,-10000.01,0.000159,2]
[406247593,1771659457757,-10000.01,0.000159,2]
[406247594,1771659463381,-776.62150607,0.00015899,5]
[406247595,1771659463417,-8446.76698786,0.000159,2]
[406247596,1771659463483,-10000.01,0.000159,2]
[406247597,1771659472686,-154.01667328,0.00015889,2]
[406247598,1771659472734,-9691.97665344,0.000159,2]
[406247599,1771659472749,-10000.01,0.000159,2]
[406247600,1771659485173,-900.0,0.000156,5]
[406247601,1771659485208,-1900.0,0.000157,5]
[406247602,1771659485235,-195.0,0.00015744,2]
[406247603,1771659485263,-195.0,0.00015855,2]
[406247604,1771659485291,-195.0,0.00015855,2]
[406247605,1771659485318,-217.74552592,0.00015889,2]
[406247606,1771659485346,-300.0,0.00015899,2]
[406247607,1771659485493,-94.50894816,0.000159,2]
[406247608,1771659526277,-2900.0,0.000158,5]
[406247609,1771659526304,-151.0,0.00015897,2]
[406247610,1771659526334,-151.0,0.00015897,2]
[406247611,1771659526360,-151.0,0.00015897,2]
[406247612,1771659526387,-5468.35879078,0.00015899,2]
[406247613,1771659526467,-2357.28241844,0.000159,2]
[406247614,1771659546016,-300.0,0.00015899,2]
[406247615,1771659546046,-300.0,0.00015899,2]
[406247616,1771659546092,-28800.0,0.000159,2]
[406247617,1771659572389,-9819.6493308,0.000158,2]
[406247618,1771659572411,-10360.7013384,0.000158,2]
[406247619,1771659602224,-1200.0,0.00015799,2]
[406247620,1771659602253,-300.0,0.00015799,2]
[406247621,1771659602314,-27000.0,0.000158,2]
[406247623,1771659621816,-1415.02053962,0.000158,2]
[406247624,1771659621842,-1402.70439344,0.000158,2]
[406247625,1771659621868,-154.61075674,0.000158,2]
[406247626,1771659621895,-282.0,0.000158,2]
[406247627,1771659621921,-323.35124102,0.0001589,2]
[406247628,1771659621948,-279.03,0.0001589,2]
[406247629,1771659621977,-279.03,0.0001589,2]
[406247630,1771659622004,-279.03,0.0001589,2]
[406247631,1771659622031,-279.03,0.0001589,2]
[406247632,1771659622059,-279.03,0.0001589,2]
[406247633,1771659622228,-20054.32613836,0.000159,2]
[406247634,1771659691162,-164.59978319,0.000158,2]
[406247635,1771659691190,-810.53264495,0.000158,2]
[406247636,1771659691219,-170.32704325,0.000158,2]
[406247637,1771659691247,-151.0,0.00015897,2]
[406247638,1771659691274,-151.0,0.00015897,2]
[406247639,1771659691302,-151.0,0.00015897,2]
[406247640,1771659691331,-300.0,0.00015899,2]
[406247641,1771659691358,-500.0,0.00015899,2]
[406247642,1771659691596,-500.0,0.00015899,2]
[406247643,1771659691624,-500.0,0.00015899,2]
[406247644,1771659691652,-500.0,0.00015899,2]
[406247645,1771659691679,-500.0,0.00015899,2]
[406247646,1771659691709,-500.0,0.00015899,2]
[406247647,1771659691867,-500.0,0.00015899,2]
[406247648,1771659691894,-500.0,0.00015899,2]
[406247649,1771659691922,-500.0,0.00015899,2]
[406247650,1771659691950,-500.0,0.00015899,2]
[406247651,1771659691979,-500.0,0.00015899,2]
[406247652,1771659692010,-500.0,0.00015899,2]
[406247653,1771659692039,-500.0,0.00015899,2]
[406247654,1771659692072,-616.19377918,0.00015899,2]
[406247655,1771659692327,-203.09105722,0.000159,2]
[406247656,1771659692341,-1767.62244164,0.000159,2]
[406247657,1771659692356,-10000.01,0.000159,2]
[406247658,1771659692374,-10000.01,0.000159,2]
[406247659,1771659692398,-10000.01,0.000159,2]
[406247660,1771659694959,-10000.01,0.000159,2]
[406247661,1771659695630,-10000.01,0.000159,2]
[406247662,1771659696034,-10000.01,0.000159,2]
[406247663,1771659696919,-177.998,0.00015582,2]
[406247664,1771659696948,-1580.179,0.00015582,2]
[406247665,1771659696998,-6483.656,0.000159,2]
[406247666,1771659698163,-10000.01,0.000159,2]
[406247667,1771659698270,-10000.01,0.000159,2]
[406247668,1771659707122,-935.1362623,0.000158,2]
[406247669,1771659707152,-500.0,0.00015899,2]
[406247670,1771659707181,-190.65687521,0.00015899,2]
[406247671,1771659707211,-479.44662032,0.00015899,2]
[406247672,1771659707243,-359.20958012,0.00015899,2]
[406247673,1771659707272,-500.0,0.00015899,2]
[406247674,1771659707409,-500.0,0.00015899,2]
[406247675,1771659707465,-3571.1113241,0.000159,2]
[406247676,1771659707522,-500.0,0.00015899,2]
[406247677,1771659707542,-178.34327985,0.00015899,2]
[406247678,1771659707552,-8821.66672015,0.000159,2]
[406247679,1771659707612,-10000.01,0.000159,2]
[406247680,1771659713165,-500.0,0.00015899,2]
[406247681,1771659713202,-9000.01,0.000159,2]
[406247682,1771659713699,-10000.01,0.000159,2]
[406247683,1771659713713,-10000.01,0.000159,2]
[406247684,1771659719237,-10000.01,0.000159,2]
[406247685,1771659719342,-10000.01,0.000159,2]
[406247686,1771659719464,-10000.01,0.000159,2]
[406247687,1771659763653,735.97547994,0.00015406,2]
[406247688,1771659921079,150.0,0.0001569,2]
[406247689,1771659999935,-1200.0,0.00015799,2]
[406247690,1771659999966,-300.0,0.00015799,2]
[406247691,1771659999994,-300.0,0.00015799,2]
[406247692,1771660000021,-2097.4317,0.000158,2]
[406247693,1771660000126,-1469.17112006,0.000158,2]
[406247694,1771660000499,-1227.34557994,0.000158,2]
[406247695,1771660000530,-2500.0,0.000158,2]
[406247696,1771660000559,-866.44205348,0.0001586,2]
[406247697,1771660000587,-189.0105583,0.0001586,2]
[406247698,1771660000654,-434.41361656,0.0001586,2]
[406247699,1771660000720,-360.26331732,0.0001586,2]
[406247700,1771660000753,-9279.48336536,0.0001586,2]
[406247701,1771660002694,-10000.01,0.0001586,2]
[406247702,1771660008951,-3885.67243986,0.0001586,2]
[406247703,1771660008979,-256.18103376,0.0001586,2]
[406247704,1771660010574,220.15495742,0.0001586,2]
[406247705,1771660023525,2400.0,0.000156,5]
[406247706,1771660025601,2600.01,0.000157,5]
[406247707,1771660025624,1496.14809534,0.000157,5]
[406247708,1771660025648,803.84190466,0.000157,5]
[406247709,1771660027685,5000.01,0.000158,5]
[406247710,1771660027709,2399.99,0.000158,5]
[406247711,1771660031529,200.0,0.000158,2]
[406247712,1771660066106,4800.01,0.00015799,2]
[406247713,1771660066131,6796.17809534,0.00015799,2]
[406247714,1771660066156,10000.01,0.00015799,2]
[406247715,1771660070506,-8283.70694724,0.00015799,2]
[406247716,1771660073586,-10000.01,0.00015799,2]
[406247717,1771660080448,-2466.07,0.000157,2]
[406247718,1771660080488,-5067.87,0.00015799,2]
[406247719,1771660083726,-10000.01,0.000157,2]
[406247720,1771660090522,-10000.01,0.000157,2]